Workbook

Sheet Results
B2: NHS Pension Scheme(s) | T2: 60 | U2: NHS 1995 Section | W2: 365 | X2: M | Y2: =(E16/W2)+C16 -> 0 | Z2: 0.5 | AA2: 60 | AD2: =IF(Results!E6="NHS 1995 Section","60",IF(Results!E6="NHS 2008 Section","65")) -> FALSE
T3: 80 | U3: NHS 2008 Section | W3: 122 | X3: F | Y3: =(K16/W2)+H16 -> 0 | Z3: 0.375
B4: Resource Account Calculator for Unprotected Members to 31/03/2020 | U4: NHS 2015 Section
C6: Final Salary Pension Scheme | E6: Choose | H6: Inflation Rate | K6: 0.017 | P6: =C16+(E16/365) -> 0
C7: Name | P7: =IF(Results!E6="NHS 2008 Section","60",IF(Results!E6="NHS 1995 Section","80")) -> FALSE | AR7: Quick Ref Key
C8: Gender | E8: Choose | H8: Age at Start of Period | K8: ='NHS FS Non Club Factors'!C112 -> 119
C9: Date of Birth | H9: Age at End of Period | K9: ='NHS FS Non Club Factors'!C123 -> 120 | AR9: 1 | AS9: State Pension Age in Years & Months
C10: State Pension Age: Years, Months | E10: 0 | F10: 0 | G10: 1
AR11: 2 | AS11: Final Salary Service @ 31/03/2015
C12: Start Period - 31/03/2019 | H12: End Period - 31/03/2020 | Q12: 2016/2017 | V12: 2019/2020
P13: Start | R13: End | U13: Start | W13: End | Z13: Start adj inflation | AR13: 3 | AS13: The actual pensionable earnings for 01/04/2015 - 31/03/2016
C14: Final Salary Service | H14: Final Salary Service
C15: Years | E15: Days | H15: Years | K15: Days | P15: FS | Q15: CARE | R15: FS | S15: CARE | U15: FS | V15: CARE | W15: FS | X15: CARE | Y15: Difference | AR15: 4 | AS15: The actual pensionable earnings for 01/04/2016 - 31/03/2017
C16: 0 | E16: 0 | G16: 2 | H16: =C16 -> 0 | K16: =E16 -> 0 | M16: 8 | O16: Pension | U16: =IF(E6=U2,ROUND((E22/T3)*Y2,2),ROUND((E22/T2)*Y2,2)) -> 0 | V16: =AA38 -> 0 | W16: =IF(E6=U2,ROUND((K19/T3)*Y3,2),ROUND((K19/T2)*Y3,2)) -> 0 | X16: =AA39 -> 0 | Y16: =(W16+X16)-(U16+V16) -> 0 | Z16: =(U16+V16)*K6 -> 0 | AA16: =(U16+V16)+Z16 -> 0
O17: Lump Sum | U17: =IF(E6=U2,(U16*3),0) -> 0 | W17: =IF(E6=U2,(W16*3),0) -> 0 | Y17: =(W17+X17)-(U17+V17) -> 0 | Z17: =(U17+V17)*K6 -> 0 | AA17: =(U17+V17)+Z17 -> 0 | AR17: 5 | AS17: The actual pensionable earnings for 01/04/2017 - 31/03/2018
C18: 15/16 CARE Actual Earnings | E18: 0 | G18: 3 | H18: 19/20 CARE Actual Earnings | K18: 0 | M18: 9 | O18: Spouse | U18: =IF(E6=U2,(U16*Z2),(U16*Z3)) -> 0 | V18: =V16*0.3375 -> 0 | W18: =IF(E6=U2,(W16*Z2),(W16*Z3)) -> 0 | X18: =X16*0.3375 -> 0 | Y18: =(W18+X18)-(U18+V18) -> 0
C19: 16/17 CARE Actual Earnings | E19: 0 | G19: 4 | H19: 19/20 WTE Final Salary Link Pay | K19: 0 | M19: 9 | AR19: 6 | AS19: The actual pensionable earnings for 01/04/2018 - 31/03/2019
C20: 17/18 CARE Actual Earnings | E20: 0 | G20: 5 | O20: Factors
C21: 18/19 CARE Actual Earnings | E21: 0 | G21: 6 | AR21: 7 | AS21: The Whole-Time Equivalent salary for 01/04/2018 - 31/03/2019 (if the member is full-time, this should match cell 6)
C22: 18/19 WTE Final Salary Link Pay | E22: 0 | G22: 7
AR23: 8 | AS23: These cells will automatically be populated with the same service as cells 2. As members cannot accrue any further final salary service once they have transitioned in to the CARE Scheme, unless they have purchased an additional years contract. (If the member has an addtional years contract please conatct SPPA for service details)
O24: Pension | U24: ='NHS FS Non Club Factors'!F113 -> 17.83 | V24: ='NHS CARE Non Club Factors'!I59 ->  | W24: ='NHS FS Non Club Factors'!F124 -> 17.83 | X24: ='NHS CARE Non Club Factors'!J59 -> 
C25: Benefits (without inflation) | O25: Lump Sum | U25: ='NHS FS Non Club Factors'!F114 -> 0.99 | W25: ='NHS FS Non Club Factors'!F125 -> 0.99 | AR25: 9 | AS25: The actual pensionable earnings for 01/04/2019 - 31/03/2020
C26: Final Salary Pension | E26: =U16 -> 0 | H26: Final Salary Pension | K26: =W16 -> 0 | O26: Spouse | U26: ='NHS FS Non Club Factors'!F115 -> 1.59 | V26: ='NHS CARE Non Club Factors'!I60 ->  | W26: ='NHS FS Non Club Factors'!F126 -> 1.59 | X26: ='NHS CARE Non Club Factors'!J60 -> 
C27: Care Pension | E27: =V16 -> 0 | H27: Care Pension | K27: =X16 -> 0 | O27: Care Adjust Factor | V27: 1 | X27: 1 | AR27: 10 | AS27: The Whole-Time Equivalent salary for 01/04/2019 - 31/03/2020 (if the member is full-time, this should match cell 9)
C28: Total Pension | E28: =SUM(E26:F27) -> 0 | H28: Total Pension | K28: =SUM(K26:L27) -> 0
C29: Lump Sum | E29: =U42 -> 0 | H29: Lump Sum | K29: =W42 -> 0
U30: =(U16)*U24 -> 0 | V30: =V16*V24 ->  | W30: 0
C31: Final Salary CETV | E31: =U34 -> 0 | H31: Final Salary CETV | K31: =W34 -> 0 | U31: =(U17)*U25 -> 0 | V31: 0 | W31: 0 | X31: 0
C32: Care CETV | E32: =V34 ->  | H32: Care CETV | K32: =X34 ->  | U32: =U18*U26 -> 0 | W32: 0
C33: Total CETV | E33: =SUM(E31:F32) ->  | H33: Total CETV | K33: =SUM(K31:L32) ->  | V33: =SUM(V30:V32) ->  | X33: =SUM(X30:X32) -> 
U34: =SUM(U30:U32) -> 0 | V34: =V33*V27 ->  | W34: =SUM(W30:W32) -> 0 | X34: =X33*X27 ->  | Z34: Scheme Year | AA34: CARE Pension
D35: Results (including inflation) | Z35: 15/16 | AA35: =(E18/54)*1.014 -> 0
U36: =U34+V34 ->  | W36: =W34+X34 ->  | Z36: 16/17 | AA36: =((E19/54)+AA35)*1.025 -> 0
D37: Real Increase in Pension | H37: =(W16+X16)-AA16 -> 0 | U37: =U36*K6 ->  | Z37: 17/18 | AA37: =((E20/54)+AA36)*1.045 -> 0
D38: Real Increase in Lump Sum | H38: =W17-AA17 -> 0 | O38: With Inflation | U38: =U36+U37 ->  | Z38: 18/19 | AA38: =((E21/54)+AA37)*1.039 -> 0
D39: Accrued Pension | H39: =K28 -> 0 | Z39: 19/20 | AA39: =((K18/54)+AA38)*1.032 -> 0
D40: Accrued Lump Sum | H40: =W42 -> 0 | O40: CETV | U40: =U38 ->  | W40: =W36 -> 
D41: CETV at start of period | H41: =U38 ->  | O41: Pension | U41: =U16+V16 -> 0 | W41: =W16+X16 -> 0
D42: CETV at end of period | H42: =K33 ->  | O42: Lump Sum | U42: =U17+V17 -> 0 | W42: =W17+X17 -> 0
D43: Real Increase in CETV | H43: =H42-H41 -> 
C45: The actual rate of pension that would be payable to the senior manager if they became entitled to it at the end of the of the financial year. | J45: PE | K45: =H39 -> 0
C46: The amount of lump sum that would be payable to the senior manager if they became entitled to it at the end of the financial year | J46: LSE | K46: =W42 -> 0
C47: The annual rate of pension, adjusted for inflation that would be payable to the senior manager if they became entitled to it at the beginning of the year | J47: PB | K47: =AA16 -> 0
C48: The amount of lump sum, adjusted for inflation, that would be payable to the senior manager if they became entitled to it at the beginning of the financial year | J48: LSB | K48: =AA17 -> 0
C49: Annual Increase to total Remuneration package | K49: =SUM((20*K45)+K46)-((20*K47)+K48) -> 0

Sheet NHS FS Non Club Factors (hidden)
A1: Table TV2 – 1995 section: Males Normal Pension Age 60 | I1: Table TV2 – 1995 section: Females Normal Pension Age 60 | Q1: Table TV3 – 2008 Section: Males Normal Pension Age 65 | Y1: Table TV4 – 2008 Section: Females Normal Pension Age 65 (up to age 59)
A2: Age last birthday at guarantee date | B2: Pension Factor | C2: Lump Sum Factor | D2: Surviving Partner's Pension Factor | E2: Male Deduction for GMP | F2: Deduction for NI Modification | G2: GMP Adj | I2: Age last birthday at guarantee date | J2: Pension Factor | K2: Lump Sum Factor | L2: Surviving Partner's Pension Factor | M2: Female Deduction for GMP | N2: Deduction for NI Modification | O2: GMP Adj | Q2: Age last birthday at guarantee date | R2: Pension Factor | S2: Lump Sum Factor (Choice Optants only) | T2: Surviving Partner's Pension Factor | U2: Male Deduction for GMP | V2: Deduction for NI Modification | W2: GMP Adj | Y2: Age last birthday at guarantee date | Z2: Pension Factor | AA2: Lump Sum Factor (Choice Optants only) | AB2: Surviving Partner's Pension Factor | AC2: Female Deduction for Pre88 GMP | AD2: Female Deduction for Post88 GMP | AE2: Deduction for NI Modification | AF2: GMP Adj
B3: (Factor A) | C3: (Factor B) | D3: (Factor C) | E3: (Factor D) | F3: (Factor F) | G3: Factor | J3: (Factor A) | K3: (Factor B) | L3: (Factor C) | M3: (Factor D) | N3: (Factor F) | R3: (Factor A) | S3: (Factor B) | T3: (Factor C) | U3: (Factor D) | V3: (Factor E) | W3: Factor | Z3: (Factor A) | AA3: (Factor B) | AB3: (Factor C) | AC3: (Factor D) | AD3: (Factor †E) | AE3: (Factor E) | AF3: Factor
A4: 18 | B4: 7.26 | C4: 0.35 | D4: 0.66 | E4: 3.63 | F4: 5.18 | G4: 0.15 | I4: 18 | J4: 7.26 | K4: 0.35 | L4: 0.66 | M4: 3.1 | N4: 5.18 | O4: 0.15 | Q4: 18 | R4: 6.5 | S4: 0.33 | T4: 0.76 | U4: 3.66 | V4: 4.65 | W4: 0.15 | Y4: 18 | Z4: 6.5 | AA4: 0.33 | AB4: 0.76 | AC4: -0.67 | AD4: -0.67 | AE4: 4.65 | AF4: 3.5
A5: 19 | B5: 7.26 | C5: 0.35 | D5: 0.66 | E5: 3.63 | F5: 5.18 | G5: 0.15 | I5: 19 | J5: 7.26 | K5: 0.35 | L5: 0.66 | M5: 3.1 | N5: 5.18 | O5: 0.15 | Q5: 19 | R5: 6.64 | S5: 0.34 | T5: 0.8 | U5: 3.65 | V5: 4.78 | W5: 0.15 | Y5: 19 | Z5: 6.64 | AA5: 0.34 | AB5: 0.8 | AC5: -0.68 | AD5: -0.68 | AE5: 4.78 | AF5: 3.5
A6: 20 | B6: 7.26 | C6: 0.35 | D6: 0.66 | E6: 3.63 | F6: 5.18 | G6: 0.15 | I6: 20 | J6: 7.26 | K6: 0.35 | L6: 0.66 | M6: 3.1 | N6: 5.18 | O6: 0.15 | Q6: 20 | R6: 6.78 | S6: 0.35 | T6: 0.82 | U6: 3.64 | V6: 4.91 | W6: 0.15 | Y6: 20 | Z6: 6.78 | AA6: 0.35 | AB6: 0.82 | AC6: -0.7 | AD6: -0.7 | AE6: 4.91 | AF6: 3.5
A7: 21 | B7: 7.26 | C7: 0.35 | D7: 0.66 | E7: 3.63 | F7: 5.18 | G7: 0.15 | I7: 21 | J7: 7.26 | K7: 0.35 | L7: 0.66 | M7: 3.1 | N7: 5.18 | O7: 0.15 | Q7: 21 | R7: 6.93 | S7: 0.36 | T7: 0.84 | U7: 3.64 | V7: 5.04 | W7: 0.15 | Y7: 21 | Z7: 6.93 | AA7: 0.36 | AB7: 0.84 | AC7: -0.71 | AD7: -0.71 | AE7: 5.04 | AF7: 3.5
A8: 22 | B8: 8.93 | C8: 0.41 | D8: 0.84 | E8: 3.63 | F8: 5.18 | G8: 0.15 | I8: 22 | J8: 8.93 | K8: 0.41 | L8: 0.84 | M8: 3.1 | N8: 5.18 | O8: 0.15 | Q8: 22 | R8: 7.07 | S8: 0.36 | T8: 0.86 | U8: 3.63 | V8: 5.18 | W8: 0.15 | Y8: 22 | Z8: 7.07 | AA8: 0.36 | AB8: 0.86 | AC8: -0.73 | AD8: -0.73 | AE8: 5.18 | AF8: 3.5
A9: 23 | B9: 9.13 | C9: 0.42 | D9: 0.86 | E9: 3.63 | F9: 5.32 | G9: 0.15 | I9: 23 | J9: 9.13 | K9: 0.42 | L9: 0.86 | M9: 3.09 | N9: 5.32 | O9: 0.15 | Q9: 23 | R9: 7.22 | S9: 0.37 | T9: 0.88 | U9: 3.63 | V9: 5.32 | W9: 0.15 | Y9: 23 | Z9: 7.22 | AA9: 0.37 | AB9: 0.88 | AC9: -0.74 | AD9: -0.74 | AE9: 5.32 | AF9: 3.5
A10: 24 | B10: 9.33 | C10: 0.43 | D10: 0.88 | E10: 3.62 | F10: 5.46 | G10: 0.15 | I10: 24 | J10: 9.33 | K10: 0.43 | L10: 0.88 | M10: 3.09 | N10: 5.46 | O10: 0.15 | Q10: 24 | R10: 7.38 | S10: 0.38 | T10: 0.9 | U10: 3.62 | V10: 5.46 | W10: 0.15 | Y10: 24 | Z10: 7.38 | AA10: 0.38 | AB10: 0.9 | AC10: -0.76 | AD10: -0.76 | AE10: 5.46 | AF10: 3.5
A11: 25 | B11: 9.53 | C11: 0.44 | D11: 0.91 | E11: 3.61 | F11: 5.61 | G11: 0.15 | I11: 25 | J11: 9.53 | K11: 0.44 | L11: 0.91 | M11: 3.08 | N11: 5.61 | O11: 0.15 | Q11: 25 | R11: 7.53 | S11: 0.39 | T11: 0.92 | U11: 3.61 | V11: 5.61 | W11: 0.15 | Y11: 25 | Z11: 7.53 | AA11: 0.39 | AB11: 0.92 | AC11: -0.78 | AD11: -0.78 | AE11: 5.61 | AF11: 3.5
A12: 26 | B12: 9.74 | C12: 0.45 | D12: 0.93 | E12: 3.61 | F12: 5.77 | G12: 0.15 | I12: 26 | J12: 9.74 | K12: 0.45 | L12: 0.93 | M12: 3.08 | N12: 5.77 | O12: 0.15 | Q12: 26 | R12: 7.69 | S12: 0.4 | T12: 0.94 | U12: 3.61 | V12: 5.77 | W12: 0.15 | Y12: 26 | Z12: 7.69 | AA12: 0.4 | AB12: 0.94 | AC12: -0.79 | AD12: -0.79 | AE12: 5.77 | AF12: 3.5
A13: 27 | B13: 9.95 | C13: 0.46 | D13: 0.95 | E13: 3.6 | F13: 5.92 | G13: 0.15 | I13: 27 | J13: 9.95 | K13: 0.46 | L13: 0.95 | M13: 3.07 | N13: 5.92 | O13: 0.15 | Q13: 27 | R13: 7.85 | S13: 0.41 | T13: 0.96 | U13: 3.6 | V13: 5.92 | W13: 0.15 | Y13: 27 | Z13: 7.85 | AA13: 0.41 | AB13: 0.96 | AC13: -0.81 | AD13: -0.81 | AE13: 5.92 | AF13: 3.5
A14: 28 | B14: 10.16 | C14: 0.47 | D14: 0.97 | E14: 3.59 | F14: 6.08 | G14: 0.15 | I14: 28 | J14: 10.16 | K14: 0.47 | L14: 0.97 | M14: 3.07 | N14: 6.08 | O14: 0.15 | Q14: 28 | R14: 8.02 | S14: 0.42 | T14: 0.99 | U14: 3.59 | V14: 6.08 | W14: 0.15 | Y14: 28 | Z14: 8.02 | AA14: 0.42 | AB14: 0.99 | AC14: -0.82 | AD14: -0.82 | AE14: 6.08 | AF14: 3.5
A15: 29 | B15: 10.38 | C15: 0.49 | D15: 0.99 | E15: 3.59 | F15: 6.25 | G15: 0.15 | I15: 29 | J15: 10.38 | K15: 0.49 | L15: 0.99 | M15: 3.06 | N15: 6.25 | O15: 0.15 | Q15: 29 | R15: 8.19 | S15: 0.43 | T15: 1.01 | U15: 3.59 | V15: 6.25 | W15: 0.15 | Y15: 29 | Z15: 8.19 | AA15: 0.43 | AB15: 1.01 | AC15: -0.84 | AD15: -0.84 | AE15: 6.25 | AF15: 3.5
A16: 30 | B16: 10.61 | C16: 0.5 | D16: 1.01 | E16: 3.58 | F16: 6.42 | G16: 0.15 | I16: 30 | J16: 10.61 | K16: 0.5 | L16: 1.01 | M16: 3.06 | N16: 6.42 | O16: 0.15 | Q16: 30 | R16: 8.36 | S16: 0.44 | T16: 1.03 | U16: 3.58 | V16: 6.42 | W16: 0.15 | Y16: 30 | Z16: 8.36 | AA16: 0.44 | AB16: 1.03 | AC16: -0.86 | AD16: -0.86 | AE16: 6.42 | AF16: 3.5
A17: 31 | B17: 10.84 | C17: 0.51 | D17: 1.04 | E17: 3.58 | F17: 6.6 | G17: 0.15 | I17: 31 | J17: 10.84 | K17: 0.51 | L17: 1.04 | M17: 3.05 | N17: 6.6 | O17: 0.15 | Q17: 31 | R17: 8.54 | S17: 0.45 | T17: 1.05 | U17: 3.58 | V17: 6.6 | W17: 0.15 | Y17: 31 | Z17: 8.54 | AA17: 0.45 | AB17: 1.05 | AC17: -0.87 | AD17: -0.87 | AE17: 6.6 | AF17: 3.5
A18: 32 | B18: 11.08 | C18: 0.52 | D18: 1.06 | E18: 3.57 | F18: 6.78 | G18: 0.15 | I18: 32 | J18: 11.08 | K18: 0.52 | L18: 1.06 | M18: 3.04 | N18: 6.78 | O18: 0.15 | Q18: 32 | R18: 8.72 | S18: 0.46 | T18: 1.08 | U18: 3.57 | V18: 6.78 | W18: 0.15 | Y18: 32 | Z18: 8.72 | AA18: 0.46 | AB18: 1.08 | AC18: -0.89 | AD18: -0.89 | AE18: 6.78 | AF18: 3.5
A19: 33 | B19: 11.32 | C19: 0.53 | D19: 1.08 | E19: 3.56 | F19: 6.96 | G19: 0.15 | I19: 33 | J19: 11.32 | K19: 0.53 | L19: 1.08 | M19: 3.04 | N19: 6.96 | O19: 0.15 | Q19: 33 | R19: 8.91 | S19: 0.47 | T19: 1.1 | U19: 3.56 | V19: 6.96 | W19: 0.15 | Y19: 33 | Z19: 8.91 | AA19: 0.47 | AB19: 1.1 | AC19: -0.9 | AD19: -0.9 | AE19: 6.96 | AF19: 3.5
A20: 34 | B20: 11.57 | C20: 0.55 | D20: 1.1 | E20: 3.56 | F20: 7.15 | G20: 0.15 | I20: 34 | J20: 11.57 | K20: 0.55 | L20: 1.1 | M20: 3.03 | N20: 7.15 | O20: 0.15 | Q20: 34 | R20: 9.1 | S20: 0.49 | T20: 1.12 | U20: 3.56 | V20: 7.15 | W20: 0.15 | Y20: 34 | Z20: 9.1 | AA20: 0.49 | AB20: 1.12 | AC20: -0.92 | AD20: -0.92 | AE20: 7.15 | AF20: 3.5
A21: 35 | B21: 11.82 | C21: 0.56 | D21: 1.13 | E21: 3.55 | F21: 7.35 | G21: 0.15 | I21: 35 | J21: 11.82 | K21: 0.56 | L21: 1.13 | M21: 3.03 | N21: 7.35 | O21: 0.15 | Q21: 35 | R21: 9.29 | S21: 0.5 | T21: 1.15 | U21: 3.55 | V21: 7.35 | W21: 0.15 | Y21: 35 | Z21: 9.29 | AA21: 0.5 | AB21: 1.15 | AC21: -0.94 | AD21: -0.94 | AE21: 7.35 | AF21: 3.5
A22: 36 | B22: 12.08 | C22: 0.57 | D22: 1.15 | E22: 3.55 | F22: 7.55 | G22: 0.15 | I22: 36 | J22: 12.08 | K22: 0.57 | L22: 1.15 | M22: 3.03 | N22: 7.55 | O22: 0.15 | Q22: 36 | R22: 9.49 | S22: 0.51 | T22: 1.17 | U22: 3.55 | V22: 7.55 | W22: 0.15 | Y22: 36 | Z22: 9.49 | AA22: 0.51 | AB22: 1.17 | AC22: -0.96 | AD22: -0.96 | AE22: 7.55 | AF22: 3.5
A23: 37 | B23: 12.34 | C23: 0.59 | D23: 1.17 | E23: 3.54 | F23: 7.76 | G23: 0.15 | I23: 37 | J23: 12.34 | K23: 0.59 | L23: 1.17 | M23: 3.02 | N23: 7.76 | O23: 0.15 | Q23: 37 | R23: 9.7 | S23: 0.52 | T23: 1.19 | U23: 3.54 | V23: 7.76 | W23: 0.15 | Y23: 37 | Z23: 9.7 | AA23: 0.52 | AB23: 1.19 | AC23: -0.97 | AD23: -0.97 | AE23: 7.76 | AF23: 3.5
A24: 38 | B24: 12.62 | C24: 0.6 | D24: 1.19 | E24: 3.54 | F24: 7.97 | G24: 0.15 | I24: 38 | J24: 12.62 | K24: 0.6 | L24: 1.19 | M24: 3.02 | N24: 7.97 | O24: 0.15 | Q24: 38 | R24: 9.9 | S24: 0.53 | T24: 1.21 | U24: 3.54 | V24: 7.97 | W24: 0.15 | Y24: 38 | Z24: 9.9 | AA24: 0.53 | AB24: 1.21 | AC24: -0.99 | AD24: -0.99 | AE24: 7.97 | AF24: 3.5
A25: 39 | B25: 12.9 | C25: 0.62 | D25: 1.21 | E25: 3.53 | F25: 8.19 | G25: 0.15 | I25: 39 | J25: 12.9 | K25: 0.62 | L25: 1.21 | M25: 3.01 | N25: 8.19 | O25: 0.15 | Q25: 39 | R25: 10.12 | S25: 0.55 | T25: 1.24 | U25: 3.53 | V25: 8.19 | W25: 0.15 | Y25: 39 | Z25: 10.12 | AA25: 0.55 | AB25: 1.24 | AC25: -1.01 | AD25: -1.01 | AE25: 8.19 | AF25: 3.5
A26: 40 | B26: 13.18 | C26: 0.63 | D26: 1.24 | E26: 3.53 | F26: 8.42 | G26: 0.15 | I26: 40 | J26: 13.18 | K26: 0.63 | L26: 1.24 | M26: 3.01 | N26: 8.42 | O26: 0.15 | Q26: 40 | R26: 10.34 | S26: 0.56 | T26: 1.26 | U26: 3.53 | V26: 8.42 | W26: 0.15 | Y26: 40 | Z26: 10.34 | AA26: 0.56 | AB26: 1.26 | AC26: -1.02 | AD26: -1.02 | AE26: 8.42 | AF26: 3.5
A27: 41 | B27: 13.47 | C27: 0.64 | D27: 1.26 | E27: 3.52 | F27: 8.65 | G27: 0.15 | I27: 41 | J27: 13.47 | K27: 0.64 | L27: 1.26 | M27: 3 | N27: 8.65 | O27: 0.15 | Q27: 41 | R27: 10.56 | S27: 0.57 | T27: 1.28 | U27: 3.52 | V27: 8.65 | W27: 0.15 | Y27: 41 | Z27: 10.56 | AA27: 0.57 | AB27: 1.28 | AC27: -1.04 | AD27: -1.04 | AE27: 8.65 | AF27: 3.5
A28: 42 | B28: 13.77 | C28: 0.66 | D28: 1.28 | E28: 3.52 | F28: 8.9 | G28: 0.15 | I28: 42 | J28: 13.77 | K28: 0.66 | L28: 1.28 | M28: 3 | N28: 8.9 | O28: 0.15 | Q28: 42 | R28: 10.79 | S28: 0.59 | T28: 1.3 | U28: 3.52 | V28: 8.9 | W28: 0.15 | Y28: 42 | Z28: 10.79 | AA28: 0.59 | AB28: 1.3 | AC28: -1.06 | AD28: -1.06 | AE28: 8.9 | AF28: 3.5
A29: 43 | B29: 14.08 | C29: 0.68 | D29: 1.3 | E29: 3.52 | F29: 9.14 | G29: 0.15 | I29: 43 | J29: 14.08 | K29: 0.68 | L29: 1.3 | M29: 3 | N29: 9.14 | O29: 0.15 | Q29: 43 | R29: 11.02 | S29: 0.6 | T29: 1.32 | U29: 3.52 | V29: 9.14 | W29: 0.15 | Y29: 43 | Z29: 11.02 | AA29: 0.6 | AB29: 1.32 | AC29: -1.08 | AD29: -1.08 | AE29: 9.14 | AF29: 3.5
A30: 44 | B30: 14.4 | C30: 0.69 | D30: 1.32 | E30: 3.51 | F30: 9.4 | G30: 0.15 | I30: 44 | J30: 14.4 | K30: 0.69 | L30: 1.32 | M30: 2.99 | N30: 9.4 | O30: 0.15 | Q30: 44 | R30: 11.26 | S30: 0.62 | T30: 1.34 | U30: 3.51 | V30: 9.4 | W30: 0.15 | Y30: 44 | Z30: 11.26 | AA30: 0.62 | AB30: 1.34 | AC30: -1.1 | AD30: -1.1 | AE30: 9.4 | AF30: 3.5
A31: 45 | B31: 14.72 | C31: 0.71 | D31: 1.34 | E31: 3.51 | F31: 9.66 | G31: 0.15 | I31: 45 | J31: 14.72 | K31: 0.71 | L31: 1.34 | M31: 2.99 | N31: 9.66 | O31: 0.15 | Q31: 45 | R31: 11.51 | S31: 0.63 | T31: 1.37 | U31: 3.51 | V31: 9.66 | W31: 0.15 | Y31: 45 | Z31: 11.51 | AA31: 0.63 | AB31: 1.37 | AC31: -1.11 | AD31: -1.11 | AE31: 9.66 | AF31: 3.5
A32: 46 | B32: 15.05 | C32: 0.73 | D32: 1.36 | E32: 3.5 | F32: 9.93 | G32: 0.15 | I32: 46 | J32: 15.05 | K32: 0.73 | L32: 1.36 | M32: 2.98 | N32: 9.93 | O32: 0.15 | Q32: 46 | R32: 11.76 | S32: 0.64 | T32: 1.39 | U32: 3.5 | V32: 9.93 | W32: 0.15 | Y32: 46 | Z32: 11.76 | AA32: 0.64 | AB32: 1.39 | AC32: -1.13 | AD32: -1.13 | AE32: 9.93 | AF32: 3.5
A33: 47 | B33: 15.39 | C33: 0.74 | D33: 1.38 | E33: 3.5 | F33: 10.21 | G33: 0.15 | I33: 47 | J33: 15.39 | K33: 0.74 | L33: 1.38 | M33: 2.98 | N33: 10.21 | O33: 0.15 | Q33: 47 | R33: 12.02 | S33: 0.66 | T33: 1.41 | U33: 3.5 | V33: 10.21 | W33: 0.15 | Y33: 47 | Z33: 12.02 | AA33: 0.66 | AB33: 1.41 | AC33: -1.15 | AD33: -1.15 | AE33: 10.21 | AF33: 3.5
A34: 48 | B34: 15.74 | C34: 0.76 | D34: 1.4 | E34: 3.5 | F34: 10.49 | G34: 0.15 | I34: 48 | J34: 15.74 | K34: 0.76 | L34: 1.4 | M34: 2.98 | N34: 10.49 | O34: 0.15 | Q34: 48 | R34: 12.29 | S34: 0.68 | T34: 1.43 | U34: 3.5 | V34: 10.49 | W34: 0.15 | Y34: 48 | Z34: 12.29 | AA34: 0.68 | AB34: 1.43 | AC34: -1.17 | AD34: -1.17 | AE34: 10.49 | AF34: 3.5
A35: 49 | B35: 16.1 | C35: 0.78 | D35: 1.41 | E35: 3.49 | F35: 10.79 | G35: 0.15 | I35: 49 | J35: 16.1 | K35: 0.78 | L35: 1.41 | M35: 2.98 | N35: 10.79 | O35: 0.15 | Q35: 49 | R35: 12.56 | S35: 0.69 | T35: 1.45 | U35: 3.49 | V35: 10.79 | W35: 0.15 | Y35: 49 | Z35: 12.56 | AA35: 0.69 | AB35: 1.45 | AC35: -1.19 | AD35: -1.19 | AE35: 10.79 | AF35: 3.5
A36: 50 | B36: 16.47 | C36: 0.8 | D36: 1.43 | E36: 3.49 | F36: 11.09 | G36: 0.15 | I36: 50 | J36: 16.47 | K36: 0.8 | L36: 1.43 | M36: 2.97 | N36: 11.09 | O36: 0.15 | Q36: 50 | R36: 12.84 | S36: 0.71 | T36: 1.46 | U36: 3.49 | V36: 11.09 | W36: 0.15 | Y36: 50 | Z36: 12.84 | AA36: 0.71 | AB36: 1.46 | AC36: -1.21 | AD36: -1.21 | AE36: 11.09 | AF36: 3.5
A37: 51 | B37: 16.85 | C37: 0.82 | D37: 1.45 | E37: 3.49 | F37: 11.41 | G37: 0.15 | I37: 51 | J37: 16.85 | K37: 0.82 | L37: 1.45 | M37: 2.97 | N37: 11.41 | O37: 0.15 | Q37: 51 | R37: 13.13 | S37: 0.73 | T37: 1.48 | U37: 3.49 | V37: 11.41 | W37: 0.15 | Y37: 51 | Z37: 13.13 | AA37: 0.73 | AB37: 1.48 | AC37: -1.23 | AD37: -1.23 | AE37: 11.41 | AF37: 3.5
A38: 52 | B38: 17.24 | C38: 0.84 | D38: 1.47 | E38: 3.48 | F38: 11.73 | G38: 0.15 | I38: 52 | J38: 17.24 | K38: 0.84 | L38: 1.47 | M38: 2.97 | N38: 11.73 | O38: 0.15 | Q38: 52 | R38: 13.42 | S38: 0.74 | T38: 1.5 | U38: 3.48 | V38: 11.73 | W38: 0.15 | Y38: 52 | Z38: 13.42 | AA38: 0.74 | AB38: 1.5 | AC38: -1.25 | AD38: -1.25 | AE38: 11.73 | AF38: 3.5
A39: 53 | B39: 17.64 | C39: 0.86 | D39: 1.48 | E39: 3.48 | F39: 12.07 | G39: 0.15 | I39: 53 | J39: 17.64 | K39: 0.86 | L39: 1.48 | M39: 2.97 | N39: 12.07 | O39: 0.15 | Q39: 53 | R39: 13.73 | S39: 0.76 | T39: 1.52 | U39: 3.48 | V39: 12.07 | W39: 0.15 | Y39: 53 | Z39: 13.73 | AA39: 0.76 | AB39: 1.52 | AC39: -1.27 | AD39: -1.27 | AE39: 12.07 | AF39: 3.5
A40: 54 | B40: 18.05 | C40: 0.88 | D40: 1.5 | E40: 3.48 | F40: 12.42 | G40: 0.15 | I40: 54 | J40: 18.05 | K40: 0.88 | L40: 1.5 | M40: 2.97 | N40: 12.42 | O40: 0.15 | Q40: 54 | R40: 14.04 | S40: 0.78 | T40: 1.53 | U40: 3.48 | V40: 12.42 | W40: 0.15 | Y40: 54 | Z40: 14.04 | AA40: 0.78 | AB40: 1.53 | AC40: -1.29 | AD40: -1.29 | AE40: 12.42 | AF40: 3.5
A41: 55 | B41: 18.48 | C41: 0.9 | D41: 1.51 | E41: 3.48 | F41: 12.78 | G41: 0.15 | I41: 55 | J41: 18.48 | K41: 0.9 | L41: 1.51 | M41: 2.97 | N41: 12.78 | O41: 0.15 | Q41: 55 | R41: 14.37 | S41: 0.8 | T41: 1.54 | U41: 3.48 | V41: 12.78 | W41: 0.15 | Y41: 55 | Z41: 14.37 | AA41: 0.8 | AB41: 1.54 | AC41: -1.31 | AD41: -1.31 | AE41: 12.78 | AF41: 3.5
A42: 56 | B42: 18.92 | C42: 0.92 | D42: 1.52 | E42: 3.48 | F42: 13.16 | G42: 0.15 | I42: 56 | J42: 18.92 | K42: 0.92 | L42: 1.52 | M42: 2.97 | N42: 13.16 | O42: 0.15 | Q42: 56 | R42: 14.7 | S42: 0.82 | T42: 1.56 | U42: 3.48 | V42: 13.16 | W42: 0.15 | Y42: 56 | Z42: 14.7 | AA42: 0.82 | AB42: 1.56 | AC42: -1.34 | AD42: -1.34 | AE42: 13.16 | AF42: 3.5
A43: 57 | B43: 19.38 | C43: 0.94 | D43: 1.53 | E43: 3.48 | F43: 13.54 | G43: 0.15 | I43: 57 | J43: 19.38 | K43: 0.94 | L43: 1.53 | M43: 2.97 | N43: 13.54 | O43: 0.15 | Q43: 57 | R43: 15.04 | S43: 0.84 | T43: 1.57 | U43: 3.48 | V43: 13.54 | W43: 0.15 | Y43: 57 | Z43: 15.04 | AA43: 0.84 | AB43: 1.57 | AC43: -1.36 | AD43: -1.36 | AE43: 13.54 | AF43: 3.5
A44: 58 | B44: 19.85 | C44: 0.97 | D44: 1.54 | E44: 3.48 | F44: 13.95 | G44: 0.15 | I44: 58 | J44: 19.85 | K44: 0.97 | L44: 1.54 | M44: 2.97 | N44: 13.95 | O44: 0.15 | Q44: 58 | R44: 15.4 | S44: 0.86 | T44: 1.58 | U44: 3.48 | V44: 13.95 | W44: 0.15 | Y44: 58 | Z44: 15.4 | AA44: 0.86 | AB44: 1.58 | AC44: -1.38 | AD44: -1.38 | AE44: 13.95 | AF44: 3.5
A45: 59 | B45: 20.34 | C45: 0.99 | D45: 1.54 | E45: 3.48 | F45: 14.37 | G45: 0.15 | I45: 59 | J45: 20.34 | K45: 0.99 | L45: 1.54 | M45: 3.05 | N45: 14.37 | O45: 0.15 | Q45: 59 | R45: 15.77 | S45: 0.88 | T45: 1.58 | U45: 3.48 | V45: 14.37 | W45: 0.15 | Y45: 59 | Z45: 15.77 | AA45: 0.88 | AB45: 1.58 | AC45: -1.44 | AD45: -1.44 | AE45: 14.37 | AF45: 3.5
A46: 60 | B46: 20.34 | C46: 0.99 | D46: 1.54 | E46: 3.48 | F46: 14.37 | G46: 0.15 | I46: 60 | J46: 20.34 | K46: 0.99 | L46: 1.54 | M46: 3.05 | N46: 14.37 | O46: 0.15 | Q46: 60 | R46: 16.15 | S46: 0.9 | T46: 1.59 | U46: 3.49 | V46: 14.8 | W46: 0.15 | Y46: 60 | Z46: 16.15 | AA46: 0.9 | AB46: 1.59 | AC46: -1.01 | AD46: -3.71 | AE46: 14.8 | AF46: 3.5
A47: 61 | B47: 20.34 | C47: 0.99 | D47: 1.54 | E47: 3.48 | F47: 14.37 | G47: 0.15 | I47: 61 | J47: 20.34 | K47: 0.99 | L47: 1.54 | M47: 3.05 | N47: 14.37 | O47: 0.15 | Q47: 61 | R47: 16.55 | S47: 0.92 | T47: 1.59 | U47: 3.49 | V47: 15.26 | W47: 0.15 | Y47: 61 | Z47: 16.55 | AA47: 0.92 | AB47: 1.59 | AC47: -0.05 | AD47: -2.82 | AE47: 15.26 | AF47: 3.5
A48: 62 | B48: 20.34 | C48: 0.99 | D48: 1.54 | E48: 3.48 | F48: 14.37 | G48: 0.15 | I48: 62 | J48: 20.34 | K48: 0.99 | L48: 1.54 | M48: 3.05 | N48: 14.37 | O48: 0.15 | Q48: 62 | R48: 16.96 | S48: 0.94 | T48: 1.59 | U48: 3.5 | V48: 15.73 | W48: 0.15 | Y48: 62 | Z48: 16.96 | AA48: 0.94 | AB48: 1.59 | AC48: 0.95 | AD48: -1.9 | AE48: 15.73 | AF48: 3.5
A49: 63 | B49: 20.34 | C49: 0.99 | D49: 1.54 | E49: 3.48 | F49: 14.37 | G49: 0.15 | I49: 63 | J49: 20.34 | K49: 0.99 | L49: 1.54 | M49: 3.05 | N49: 14.37 | O49: 0.15 | Q49: 63 | R49: 17.39 | S49: 0.97 | T49: 1.59 | U49: 3.51 | V49: 16.23 | W49: 0.15 | Y49: 63 | Z49: 17.39 | AA49: 0.97 | AB49: 1.59 | AC49: 1.99 | AD49: -0.95 | AE49: 16.23 | AF49: 3.5
A50: 64 | B50: 20.34 | C50: 0.99 | D50: 1.54 | E50: 3.48 | F50: 14.37 | G50: 0.15 | I50: 64 | J50: 20.34 | K50: 0.99 | L50: 1.54 | M50: 3.05 | N50: 14.37 | O50: 0.15 | Q50: 64 | R50: 17.83 | S50: 0.99 | T50: 1.59 | U50: 3.61 | V50: 16.74 | W50: 0.15 | Y50: 64 | Z50: 17.83 | AA50: 0.99 | AB50: 1.59 | AC50: 3.05 | AD50: 0.03 | AE50: 16.74 | AF50: 3.5
A51: 65 | B51: 20.34 | C51: 0.99 | D51: 1.54 | E51: 3.48 | F51: 14.37 | G51: 0.15 | I51: 65 | J51: 20.34 | K51: 0.99 | L51: 1.54 | M51: 3.05 | N51: 14.37 | O51: 0.15 | Q51: 65 | R51: 17.83 | S51: 0.99 | T51: 1.59 | U51: 3.61 | V51: 16.74 | W51: 0.15 | Y51: 65 | Z51: 17.83 | AA51: 0.99 | AB51: 1.59 | AC51: 3.05 | AD51: 0.03 | AE51: 16.74 | AF51: 3.5
A52: 66 | B52: 20.34 | C52: 0.99 | D52: 1.54 | E52: 3.48 | F52: 14.37 | G52: 0.15 | I52: 66 | J52: 20.34 | K52: 0.99 | L52: 1.54 | M52: 3.05 | N52: 14.37 | O52: 0.15 | Q52: 66 | R52: 17.83 | S52: 0.99 | T52: 1.59 | U52: 3.61 | V52: 16.74 | W52: 0.15 | Y52: 66 | Z52: 17.83 | AA52: 0.99 | AB52: 1.59 | AC52: 3.05 | AD52: 0.03 | AE52: 16.74 | AF52: 3.5
A53: 67 | B53: 20.34 | C53: 0.99 | D53: 1.54 | E53: 3.48 | F53: 14.37 | G53: 0.15 | I53: 67 | J53: 20.34 | K53: 0.99 | L53: 1.54 | M53: 3.05 | N53: 14.37 | O53: 0.15 | Q53: 67 | R53: 17.83 | S53: 0.99 | T53: 1.59 | U53: 3.61 | V53: 16.74 | W53: 0.15 | Y53: 67 | Z53: 17.83 | AA53: 0.99 | AB53: 1.59 | AC53: 3.05 | AD53: 0.03 | AE53: 16.74 | AF53: 3.5
A54: Notes: | I54: Notes: | Q54: Notes: | Y54: Notes:
A55: 1. When calculating the deduction for GMP, the factor given should be applied to the sum of the GMP amount per annum in respect of service up to 5 April 1988 and 15% of the GMP amount per annum in respect of service after that date | I55: 1. When calculating the deduction for GMP, the factor given should be applied to the sum of the GMP amount per annum in respect of service up to 5 April 1988 and 15% of the GMP amount per annum in respect of service after that date | Q55: 1. When calculating the deduction for GMP for males, the factor given should be applied to the sum of the GMP amount per annum in respect of service up to 5 April 1988 and 15% of the GMP amount per annum in respect of service after that date | Y55: 1. When calculating the deduction for GMP for females, the factor given should be applied to the sum of the GMP amount per annum in respect of service up to 5 April 1988 and 350% of the GMP amount per annum in respect of service after that date
A56: Table CEM60 - CETV factors for men, NPA 60, STSS | I56: Table CEF60 - CETV factors for women, NPA 60, STSS | Q56: Table CEM65 - CETV factors for men, NPA 65, STSS and STPS | Y56: Table CEF65a - CETV factors for women, NPA 65, ages 20 to 59, STSS and STPS
A58: Age last birthday at relevant date | B58: Gross Pension of £1 per annum | C58: Lump Sum of £1 | D58: Surviving Partner's Pension of £1 pa | E58: Deduction1 for GMP of £1 pa | F58: Deduction for NI Modification of £1 pa | G58: GMP Adj | I58: Age last birthday at relevant date | J58: Gross Pension of £1 per annum | K58: Lump Sum of £1 | L58: Surviving Partner's Pension of £1 pa | M58: Deduction1 for GMP of £1 pa | N58: Deduction for NI Modification of £1 pa | O58: GMP Adj | Q58: Age last birthday at relevant date | R58: Gross Pension of £1 per annum | S58: Lump Sum Factor | T58: Surviving Partner's Pension of £1 pa | U58: Deduction1 for GMP of £1 pa | V58: Deduction for NI Modification of £1 pa | W58: GMP Adj | Y58: Age last birthday at relevant date | Z58: Gross Pension of £1 per annum | AA58: Lump Sum Factor | AB58: Surviving Partner's Pension of £1 pa | AC58: Deduction1 for GMP of £1 pa | AD58: Female Deduction for Post88 GMP | AE58: Deduction for NI Modification of £1 pa | AF58: GMP Adj
A59: 18 | I59: 18 | Q59: 18 | Y59: 18
A60: 19 | I60: 19 | Q60: 19 | Y60: 19
A61: 20 | B61: 6.73 | C61: 0.35 | D61: 1.23 | E61: 3.5 | F61: 4.72 | G61: 0.15 | I61: 20 | J61: 7.15 | K61: 0.33 | L61: 0.42 | M61: 3.02 | N61: 5.11 | O61: 0.15 | Q61: 20 | R61: 5.22 | S61: 0 | T61: 1.23 | U61: 3.5 | V61: 4.72 | W61: 0.15 | Y61: 20 | Z61: 5.61 | AA61: 0 | AB61: 0.42 | AC61: -0.84 | AD61: 5.11 | AE61: 5.11 | AF61: 3.5
A62: 21 | B62: 6.91 | C62: 0.36 | D62: 1.26 | E62: 3.49 | F62: 4.85 | G62: 0.15 | I62: 21 | J62: 7.33 | K62: 0.34 | L62: 0.43 | M62: 3.01 | N62: 5.25 | O62: 0.15 | Q62: 21 | R62: 5.35 | S62: 0 | T62: 1.26 | U62: 3.49 | V62: 4.85 | W62: 0.15 | Y62: 21 | Z62: 5.75 | AA62: 0 | AB62: 0.43 | AC62: -0.86 | AD62: 5.25 | AE62: 5.25 | AF62: 3.5
A63: 22 | B63: 7.08 | C63: 0.37 | D63: 1.29 | E63: 3.49 | F63: 4.98 | G63: 0.15 | I63: 22 | J63: 7.52 | K63: 0.35 | L63: 0.44 | M63: 3.01 | N63: 5.39 | O63: 0.15 | Q63: 22 | R63: 5.48 | S63: 0 | T63: 1.29 | U63: 3.49 | V63: 4.98 | W63: 0.15 | Y63: 22 | Z63: 5.9 | AA63: 0 | AB63: 0.44 | AC63: -0.87 | AD63: 5.39 | AE63: 5.39 | AF63: 3.5
A64: 23 | B64: 7.26 | C64: 0.38 | D64: 1.33 | E64: 3.48 | F64: 5.12 | G64: 0.15 | I64: 23 | J64: 7.71 | K64: 0.36 | L64: 0.46 | M64: 3.01 | N64: 5.54 | O64: 0.15 | Q64: 23 | R64: 5.63 | S64: 0 | T64: 1.33 | U64: 3.48 | V64: 5.12 | W64: 0.15 | Y64: 23 | Z64: 6.05 | AA64: 0 | AB64: 0.46 | AC64: -0.89 | AD64: 5.54 | AE64: 5.54 | AF64: 3.5
A65: 24 | B65: 7.46 | C65: 0.39 | D65: 1.37 | E65: 3.48 | F65: 5.26 | G65: 0.15 | I65: 24 | J65: 7.92 | K65: 0.38 | L65: 0.47 | M65: 3 | N65: 5.69 | O65: 0.15 | Q65: 24 | R65: 5.77 | S65: 0 | T65: 1.37 | U65: 3.48 | V65: 5.26 | W65: 0.15 | Y65: 24 | Z65: 6.2 | AA65: 0 | AB65: 0.47 | AC65: -0.9 | AD65: 5.69 | AE65: 5.69 | AF65: 3.5
A66: 25 | B66: 7.65 | C66: 0.4 | D66: 1.4 | E66: 3.47 | F66: 5.4 | G66: 0.15 | I66: 25 | J66: 8.13 | K66: 0.38 | L66: 0.48 | M66: 3 | N66: 5.85 | O66: 0.15 | Q66: 25 | R66: 5.91 | S66: 0 | T66: 1.4 | U66: 3.47 | V66: 5.4 | W66: 0.15 | Y66: 25 | Z66: 6.36 | AA66: 0 | AB66: 0.48 | AC66: -0.92 | AD66: 5.85 | AE66: 5.85 | AF66: 3.5
A67: 26 | B67: 7.84 | C67: 0.41 | D67: 1.44 | E67: 3.46 | F67: 5.55 | G67: 0.15 | I67: 26 | J67: 8.34 | K67: 0.39 | L67: 0.49 | M67: 2.99 | N67: 6.01 | O67: 0.15 | Q67: 26 | R67: 6.06 | S67: 0 | T67: 1.44 | U67: 3.46 | V67: 5.55 | W67: 0.15 | Y67: 26 | Z67: 6.52 | AA67: 0 | AB67: 0.49 | AC67: -0.93 | AD67: 6.01 | AE67: 6.01 | AF67: 3.5
A68: 27 | B68: 8.05 | C68: 0.42 | D68: 1.48 | E68: 3.46 | F68: 5.7 | G68: 0.15 | I68: 27 | J68: 8.55 | K68: 0.42 | L68: 0.5 | M68: 2.99 | N68: 6.18 | O68: 0.15 | Q68: 27 | R68: 6.22 | S68: 0 | T68: 1.48 | U68: 3.46 | V68: 5.7 | W68: 0.15 | Y68: 27 | Z68: 6.7 | AA68: 0 | AB68: 0.5 | AC68: -0.95 | AD68: 6.18 | AE68: 6.18 | AF68: 3.5
A69: 28 | B69: 8.26 | C69: 0.43 | D69: 1.52 | E69: 3.45 | F69: 5.85 | G69: 0.15 | I69: 28 | J69: 8.78 | K69: 0.43 | L69: 0.52 | M69: 2.99 | N69: 6.35 | O69: 0.15 | Q69: 28 | R69: 6.37 | S69: 0 | T69: 1.52 | U69: 3.45 | V69: 5.85 | W69: 0.15 | Y69: 28 | Z69: 6.87 | AA69: 0 | AB69: 0.52 | AC69: -0.96 | AD69: 6.35 | AE69: 6.35 | AF69: 3.5
A70: 29 | B70: 8.47 | C70: 0.44 | D70: 1.56 | E70: 3.45 | F70: 6.01 | G70: 0.15 | I70: 29 | J70: 9.01 | K70: 0.44 | L70: 0.53 | M70: 2.98 | N70: 6.53 | O70: 0.15 | Q70: 29 | R70: 6.53 | S70: 0 | T70: 1.56 | U70: 3.45 | V70: 6.01 | W70: 0.15 | Y70: 29 | Z70: 7.05 | AA70: 0 | AB70: 0.53 | AC70: -0.98 | AD70: 6.53 | AE70: 6.53 | AF70: 3.5
A71: 30 | B71: 8.68 | C71: 0.44 | D71: 1.61 | E71: 3.44 | F71: 6.18 | G71: 0.15 | I71: 30 | J71: 9.24 | K71: 0.44 | L71: 0.54 | M71: 2.98 | N71: 6.71 | O71: 0.15 | Q71: 30 | R71: 6.7 | S71: 0 | T71: 1.62 | U71: 3.44 | V71: 6.18 | W71: 0.15 | Y71: 30 | Z71: 7.23 | AA71: 0 | AB71: 0.54 | AC71: -0.99 | AD71: 6.71 | AE71: 6.71 | AF71: 3.5
A72: 31 | B72: 8.91 | C72: 0.47 | D72: 1.65 | E72: 3.44 | F72: 6.35 | G72: 0.15 | I72: 31 | J72: 9.48 | K72: 0.45 | L72: 0.56 | M72: 2.97 | N72: 6.89 | O72: 0.15 | Q72: 31 | R72: 6.87 | S72: 0 | T72: 1.66 | U72: 3.44 | V72: 6.35 | W72: 0.15 | Y72: 31 | Z72: 7.41 | AA72: 0 | AB72: 0.56 | AC72: -1.01 | AD72: 6.89 | AE72: 6.89 | AF72: 3.5
A73: 32 | B73: 9.14 | C73: 0.47 | D73: 1.69 | E73: 3.43 | F73: 6.52 | G73: 0.15 | I73: 32 | J73: 9.73 | K73: 0.47 | L73: 0.57 | M73: 2.97 | N73: 7.08 | O73: 0.15 | Q73: 32 | R73: 7.04 | S73: 0 | T73: 1.7 | U73: 3.43 | V73: 6.52 | W73: 0.15 | Y73: 32 | Z73: 7.6 | AA73: 0 | AB73: 0.57 | AC73: -1.02 | AD73: 7.08 | AE73: 7.08 | AF73: 3.5
A74: 33 | B74: 9.38 | C74: 0.48 | D74: 1.73 | E74: 3.43 | F74: 6.7 | G74: 0.15 | I74: 33 | J74: 9.99 | K74: 0.48 | L74: 0.58 | M74: 2.97 | N74: 7.28 | O74: 0.15 | Q74: 33 | R74: 7.22 | S74: 0 | T74: 1.73 | U74: 3.43 | V74: 6.7 | W74: 0.15 | Y74: 33 | Z74: 7.8 | AA74: 0 | AB74: 0.58 | AC74: -1.04 | AD74: 7.28 | AE74: 7.28 | AF74: 3.5
A75: 34 | B75: 9.62 | C75: 0.5 | D75: 1.78 | E75: 3.42 | F75: 6.88 | G75: 0.15 | I75: 34 | J75: 10.25 | K75: 0.49 | L75: 0.6 | M75: 2.96 | N75: 7.48 | O75: 0.15 | Q75: 34 | R75: 7.4 | S75: 0 | T75: 1.78 | U75: 3.42 | V75: 6.88 | W75: 0.15 | Y75: 34 | Z75: 7.99 | AA75: 0 | AB75: 0.6 | AC75: -1.05 | AD75: 7.48 | AE75: 7.48 | AF75: 3.5
A76: 35 | B76: 9.87 | C76: 0.51 | D76: 1.82 | E76: 3.42 | F76: 7.07 | G76: 0.15 | I76: 35 | J76: 10.52 | K76: 0.51 | L76: 0.61 | M76: 2.96 | N76: 7.69 | O76: 0.15 | Q76: 35 | R76: 7.59 | S76: 0 | T76: 1.82 | U76: 3.42 | V76: 7.07 | W76: 0.15 | Y76: 35 | Z76: 8.2 | AA76: 0 | AB76: 0.61 | AC76: -1.07 | AD76: 7.69 | AE76: 7.69 | AF76: 3.5
A77: 36 | B77: 10.13 | C77: 0.53 | D77: 1.87 | E77: 3.41 | F77: 7.27 | G77: 0.15 | I77: 36 | J77: 10.79 | K77: 0.52 | L77: 0.62 | M77: 2.95 | N77: 7.9 | O77: 0.15 | Q77: 36 | R77: 7.79 | S77: 0 | T77: 1.87 | U77: 3.41 | V77: 7.27 | W77: 0.15 | Y77: 36 | Z77: 8.41 | AA77: 0 | AB77: 0.62 | AC77: -1.09 | AD77: 7.9 | AE77: 7.9 | AF77: 3.5
A78: 37 | B78: 10.4 | C78: 0.54 | D78: 1.91 | E78: 3.41 | F78: 7.47 | G78: 0.15 | I78: 37 | J78: 11.08 | K78: 0.54 | L78: 0.64 | M78: 2.95 | N78: 8.12 | O78: 0.15 | Q78: 37 | R78: 7.99 | S78: 0 | T78: 1.91 | U78: 3.41 | V78: 7.47 | W78: 0.15 | Y78: 37 | Z78: 8.63 | AA78: 0 | AB78: 0.64 | AC78: -1.1 | AD78: 8.12 | AE78: 8.12 | AF78: 3.5
A79: 38 | B79: 10.67 | C79: 0.56 | D79: 1.95 | E79: 3.4 | F79: 7.67 | G79: 0.15 | I79: 38 | J79: 11.38 | K79: 0.55 | L79: 0.65 | M79: 2.95 | N79: 8.35 | O79: 0.15 | Q79: 38 | R79: 8.19 | S79: 0 | T79: 1.95 | U79: 3.4 | V79: 7.67 | W79: 0.15 | Y79: 38 | Z79: 8.86 | AA79: 0 | AB79: 0.65 | AC79: -1.12 | AD79: 8.35 | AE79: 8.35 | AF79: 3.5
A80: 39 | B80: 10.95 | C80: 0.57 | D80: 2 | E80: 3.4 | F80: 7.89 | G80: 0.15 | I80: 39 | J80: 11.67 | K80: 0.57 | L80: 0.67 | M80: 2.94 | N80: 8.58 | O80: 0.15 | Q80: 39 | R80: 8.41 | S80: 0 | T80: 2 | U80: 3.4 | V80: 7.89 | W80: 0.15 | Y80: 39 | Z80: 9.08 | AA80: 0 | AB80: 0.67 | AC80: -1.13 | AD80: 8.58 | AE80: 8.58 | AF80: 3.5
A81: 40 | B81: 11.25 | C81: 0.59 | D81: 2.03 | E81: 3.4 | F81: 8.11 | G81: 0.15 | I81: 40 | J81: 11.98 | K81: 0.58 | L81: 0.68 | M81: 2.94 | N81: 8.82 | O81: 0.15 | Q81: 40 | R81: 8.62 | S81: 0 | T81: 2.04 | U81: 3.4 | V81: 8.11 | W81: 0.15 | Y81: 40 | Z81: 9.32 | AA81: 0 | AB81: 0.68 | AC81: -1.15 | AD81: 8.82 | AE81: 8.82 | AF81: 3.5
A82: 41 | B82: 11.54 | C82: 0.6 | D82: 2.07 | E82: 3.39 | F82: 8.33 | G82: 0.15 | I82: 41 | J82: 12.3 | K82: 0.6 | L82: 0.7 | M82: 2.94 | N82: 9.06 | O82: 0.15 | Q82: 41 | R82: 8.84 | S82: 0 | T82: 2.08 | U82: 3.39 | V82: 8.33 | W82: 0.15 | Y82: 41 | Z82: 9.55 | AA82: 0 | AB82: 0.7 | AC82: -1.17 | AD82: 9.06 | AE82: 9.06 | AF82: 3.5
A83: 42 | B83: 11.85 | C83: 0.62 | D83: 2.12 | E83: 3.39 | F83: 8.57 | G83: 0.15 | I83: 42 | J83: 12.62 | K83: 0.62 | L83: 0.71 | M83: 2.93 | N83: 9.32 | O83: 0.15 | Q83: 42 | R83: 9.08 | S83: 0 | T83: 2.13 | U83: 3.39 | V83: 8.57 | W83: 0.15 | Y83: 42 | Z83: 9.81 | AA83: 0 | AB83: 0.71 | AC83: -1.18 | AD83: 9.32 | AE83: 9.32 | AF83: 3.5
A84: 43 | B84: 12.16 | C84: 0.64 | D84: 2.16 | E84: 3.39 | F84: 8.81 | G84: 0.15 | I84: 43 | J84: 12.95 | K84: 0.64 | L84: 0.72 | M84: 2.93 | N84: 9.58 | O84: 0.15 | Q84: 43 | R84: 9.31 | S84: 0 | T84: 2.16 | U84: 3.39 | V84: 8.81 | W84: 0.15 | Y84: 43 | Z84: 10.06 | AA84: 0 | AB84: 0.72 | AC84: -1.2 | AD84: 9.58 | AE84: 9.58 | AF84: 3.5
A85: 44 | B85: 12.5 | C85: 0.66 | D85: 2.2 | E85: 3.39 | F85: 9.06 | G85: 0.15 | I85: 44 | J85: 13.3 | K85: 0.65 | L85: 0.74 | M85: 2.93 | N85: 9.84 | O85: 0.15 | Q85: 44 | R85: 9.56 | S85: 0 | T85: 2.2 | U85: 3.39 | V85: 9.06 | W85: 0.15 | Y85: 44 | Z85: 10.31 | AA85: 0 | AB85: 0.74 | AC85: -1.22 | AD85: 9.84 | AE85: 9.84 | AF85: 3.5
A86: 45 | B86: 12.83 | C86: 0.68 | D86: 2.24 | E86: 3.38 | F86: 9.31 | G86: 0.15 | I86: 45 | J86: 13.65 | K86: 0.67 | L86: 0.75 | M86: 2.92 | N86: 10.12 | O86: 0.15 | Q86: 45 | R86: 9.8 | S86: 0 | T86: 2.25 | U86: 3.38 | V86: 9.31 | W86: 0.15 | Y86: 45 | Z86: 10.59 | AA86: 0 | AB86: 0.75 | AC86: -1.23 | AD86: 10.12 | AE86: 10.12 | AF86: 3.5
A87: 46 | B87: 13.17 | C87: 0.69 | D87: 2.28 | E87: 3.38 | F87: 9.58 | G87: 0.15 | I87: 46 | J87: 14.01 | K87: 0.69 | L87: 0.76 | M87: 2.92 | N87: 10.4 | O87: 0.15 | Q87: 46 | R87: 10.07 | S87: 0 | T87: 2.29 | U87: 3.38 | V87: 9.58 | W87: 0.15 | Y87: 46 | Z87: 10.86 | AA87: 0 | AB87: 0.77 | AC87: -1.25 | AD87: 10.4 | AE87: 10.4 | AF87: 3.5
A88: 47 | B88: 13.53 | C88: 0.71 | D88: 2.33 | E88: 3.38 | F88: 9.85 | G88: 0.15 | I88: 47 | J88: 14.38 | K88: 0.71 | L88: 0.77 | M88: 2.92 | N88: 10.69 | O88: 0.15 | Q88: 47 | R88: 10.33 | S88: 0 | T88: 2.33 | U88: 3.38 | V88: 9.85 | W88: 0.15 | Y88: 47 | Z88: 11.14 | AA88: 0 | AB88: 0.78 | AC88: -1.27 | AD88: 10.69 | AE88: 10.69 | AF88: 3.5
A89: 48 | B89: 13.89 | C89: 0.73 | D89: 2.38 | E89: 3.38 | F89: 10.12 | G89: 0.15 | I89: 48 | J89: 14.76 | K89: 0.73 | L89: 0.79 | M89: 2.91 | N89: 10.99 | O89: 0.15 | Q89: 48 | R89: 10.6 | S89: 0 | T89: 2.38 | U89: 3.38 | V89: 10.12 | W89: 0.15 | Y89: 48 | Z89: 11.43 | AA89: 0 | AB89: 0.8 | AC89: -1.28 | AD89: 10.99 | AE89: 10.99 | AF89: 3.5
A90: 49 | B90: 14.27 | C90: 0.76 | D90: 2.42 | E90: 3.37 | F90: 10.41 | G90: 0.15 | I90: 49 | J90: 15.16 | K90: 0.75 | L90: 0.8 | M90: 2.91 | N90: 11.3 | O90: 0.15 | Q90: 49 | R90: 10.88 | S90: 0 | T90: 2.43 | U90: 3.37 | V90: 10.41 | W90: 0.15 | Y90: 49 | Z90: 11.73 | AA90: 0 | AB90: 0.8 | AC90: -1.3 | AD90: 11.3 | AE90: 11.3 | AF90: 3.5
A91: 50 | B91: 14.65 | C91: 0.77 | D91: 2.47 | E91: 3.37 | F91: 10.71 | G91: 0.15 | I91: 50 | J91: 15.56 | K91: 0.77 | L91: 0.82 | M91: 2.91 | N91: 11.62 | O91: 0.15 | Q91: 50 | R91: 11.17 | S91: 0 | T91: 2.48 | U91: 3.37 | V91: 10.71 | W91: 0.15 | Y91: 50 | Z91: 12.04 | AA91: 0 | AB91: 0.82 | AC91: -1.32 | AD91: 11.62 | AE91: 11.62 | AF91: 3.5
A92: 51 | B92: 15.06 | C92: 0.79 | D92: 2.52 | E92: 3.37 | F92: 11.01 | G92: 0.15 | I92: 51 | J92: 15.98 | K92: 0.79 | L92: 0.83 | M92: 2.9 | N92: 11.95 | O92: 0.15 | Q92: 51 | R92: 11.46 | S92: 0 | T92: 2.52 | U92: 3.37 | V92: 11.01 | W92: 0.15 | Y92: 51 | Z92: 12.36 | AA92: 0 | AB92: 0.83 | AC92: -1.34 | AD92: 11.95 | AE92: 11.95 | AF92: 3.5
A93: 52 | B93: 15.46 | C93: 0.81 | D93: 2.56 | E93: 3.37 | F93: 11.33 | G93: 0.15 | I93: 52 | J93: 16.42 | K93: 0.81 | L93: 0.84 | M93: 2.9 | N93: 12.29 | O93: 0.15 | Q93: 52 | R93: 11.77 | S93: 0 | T93: 2.57 | U93: 3.37 | V93: 11.33 | W93: 0.15 | Y93: 52 | Z93: 12.68 | AA93: 0 | AB93: 0.84 | AC93: -1.36 | AD93: 12.29 | AE93: 12.29 | AF93: 3.5
A94: 53 | B94: 15.9 | C94: 0.84 | D94: 2.6 | E94: 3.37 | F94: 11.66 | G94: 0.15 | I94: 53 | J94: 16.86 | K94: 0.84 | L94: 0.85 | M94: 2.9 | N94: 12.64 | O94: 0.15 | Q94: 53 | R94: 12.09 | S94: 0 | T94: 2.61 | U94: 3.37 | V94: 11.66 | W94: 0.15 | Y94: 53 | Z94: 13.02 | AA94: 0 | AB94: 0.85 | AC94: -1.37 | AD94: 12.64 | AE94: 12.64 | AF94: 3.5
A95: 54 | B95: 16.34 | C95: 0.86 | D95: 2.65 | E95: 3.37 | F95: 12 | G95: 0.15 | I95: 54 | J95: 17.32 | K95: 0.86 | L95: 0.86 | M95: 2.9 | N95: 13 | O95: 0.15 | Q95: 54 | R95: 12.42 | S95: 0 | T95: 2.65 | U95: 3.37 | V95: 12 | W95: 0.15 | Y95: 54 | Z95: 13.36 | AA95: 0 | AB95: 0.86 | AC95: -1.39 | AD95: 13 | AE95: 13 | AF95: 3.5
A96: 55 | B96: 16.8 | C96: 0.89 | D96: 2.68 | E96: 3.37 | F96: 12.35 | G96: 0.15 | I96: 55 | J96: 17.8 | K96: 0.89 | L96: 0.86 | M96: 2.9 | N96: 13.38 | O96: 0.15 | Q96: 55 | R96: 12.76 | S96: 0 | T96: 2.69 | U96: 3.37 | V96: 12.35 | W96: 0.15 | Y96: 55 | Z96: 13.73 | AA96: 0 | AB96: 0.87 | AC96: -1.41 | AD96: 13.38 | AE96: 13.38 | AF96: 3.5
A97: 56 | B97: 17.28 | C97: 0.91 | D97: 2.72 | E97: 3.38 | F97: 12.72 | G97: 0.15 | I97: 56 | J97: 18.28 | K97: 0.91 | L97: 0.87 | M97: 2.9 | N97: 13.77 | O97: 0.15 | Q97: 56 | R97: 13.11 | S97: 0 | T97: 2.72 | U97: 3.38 | V97: 12.72 | W97: 0.15 | Y97: 56 | Z97: 14.1 | AA97: 0 | AB97: 0.88 | AC97: -1.43 | AD97: 13.77 | AE97: 13.77 | AF97: 3.5
A98: 57 | B98: 17.77 | C98: 0.93 | D98: 2.75 | E98: 3.38 | F98: 13.1 | G98: 0.15 | I98: 57 | J98: 18.8 | K98: 0.93 | L98: 0.88 | M98: 2.9 | N98: 14.17 | O98: 0.15 | Q98: 57 | R98: 13.48 | S98: 0 | T98: 2.76 | U98: 3.38 | V98: 13.1 | W98: 0.15 | Y98: 57 | Z98: 14.48 | AA98: 0 | AB98: 0.88 | AC98: -1.45 | AD98: 14.17 | AE98: 14.17 | AF98: 3.5
A99: 58 | B99: 18.29 | C99: 0.96 | D99: 2.8 | E99: 3.38 | F99: 13.49 | G99: 0.15 | I99: 58 | J99: 19.32 | K99: 0.96 | L99: 0.88 | M99: 2.9 | N99: 14.59 | O99: 0.15 | Q99: 58 | R99: 13.85 | S99: 0 | T99: 2.81 | U99: 3.38 | V99: 13.49 | W99: 0.15 | Y99: 58 | Z99: 14.88 | AA99: 0 | AB99: 0.88 | AC99: -1.47 | AD99: 14.59 | AE99: 14.59 | AF99: 3.5
A100: 59 | B100: 18.82 | C100: 0.99 | D100: 2.83 | E100: 3.39 | F100: 13.91 | G100: 0.15 | I100: 59 | J100: 19.87 | K100: 0.99 | L100: 0.89 | M100: 2.97 | N100: 15.02 | O100: 0.15 | Q100: 59 | R100: 14.25 | S100: 0 | T100: 2.84 | U100: 3.39 | V100: 13.91 | W100: 0.15 | Y100: 59 | Z100: 15.29 | AA100: 0 | AB100: 0.89 | AC100: -1.53 | AD100: 15.02 | AE100: 15.02 | AF100: 3.5
A101: 60 | B101: 18.82 | C101: 0.99 | D101: 2.83 | E101: 3.39 | F101: 13.91 | G101: 0.15 | I101: 60 | J101: 19.87 | K101: 0.99 | L101: 0.89 | M101: 2.97 | N101: 15.02 | O101: 0.15 | Q101: 60 | R101: 14.65682183 | S101: 0 | T101: 2.865539751 | U101: 3.39 | V101: 14.33 | W101: 0.15 | Y101: 60 | Z101: 15.72 | AA101: 0 | AB101: 0.89 | AC101: -1.1 | AD101: -3.72 | AE101: 15.47 | AF101: 1
A102: 61 | B102: 18.82 | C102: 0.99 | D102: 2.83 | E102: 3.39 | F102: 13.91 | G102: 0.15 | I102: 61 | J102: 19.87 | K102: 0.99 | L102: 0.89 | M102: 2.97 | N102: 15.02 | O102: 0.15 | Q102: 61 | R102: 15.08773134 | S102: 0 | T102: 2.900542626 | U102: 3.4 | V102: 14.78 | W102: 0.15 | Y102: 61 | Z102: 16.17 | AA102: 0 | AB102: 0.89 | AC102: -0.14 | AD102: -2.82 | AE102: 15.94 | AF102: 1
A103: 62 | B103: 18.82 | C103: 0.99 | D103: 2.83 | E103: 3.39 | F103: 13.91 | G103: 0.15 | I103: 62 | J103: 19.87 | K103: 0.99 | L103: 0.89 | M103: 2.97 | N103: 15.02 | O103: 0.15 | Q103: 62 | R103: 15.53728893 | S103: 0 | T103: 2.935398764 | U103: 3.41 | V103: 15.25 | W103: 0.15 | Y103: 62 | Z103: 16.62 | AA103: 0 | AB103: 0.89 | AC103: 0.86 | AD103: -1.9 | AE103: 16.42 | AF103: 1
A104: 63 | B104: 18.82 | C104: 0.99 | D104: 2.83 | E104: 3.39 | F104: 13.91 | G104: 0.15 | I104: 63 | J104: 19.87 | K104: 0.99 | L104: 0.89 | M104: 2.97 | N104: 15.02 | O104: 0.15 | Q104: 63 | R104: 15.99521237 | S104: 0 | T104: 2.960006191 | U104: 3.42 | V104: 15.73 | W104: 0.15 | Y104: 63 | Z104: 17.1 | AA104: 0 | AB104: 0.88 | AC104: 1.89 | AD104: -0.95 | AE104: 16.93 | AF104: 1
A105: 64 | B105: 18.82 | C105: 0.99 | D105: 2.83 | E105: 3.39 | F105: 13.91 | G105: 0.15 | I105: 64 | J105: 19.87 | K105: 0.99 | L105: 0.89 | M105: 2.97 | N105: 15.02 | O105: 0.15 | Q105: 64 | R105: 16.48174547 | S105: 0 | T105: 2.984506988 | U105: 3.51 | V105: 16.24 | W105: 0.15 | Y105: 64 | Z105: 17.6 | AA105: 0 | AB105: 0.88 | AC105: 2.95 | AD105: 0.03 | AE105: 17.46 | AF105: 1
A106: 65 | B106: 18.82 | C106: 0.99 | D106: 2.83 | E106: 3.39 | F106: 13.91 | G106: 0.15 | I106: 65 | J106: 19.87 | K106: 0.99 | L106: 0.89 | M106: 2.97 | N106: 15.02 | O106: 0.15 | Q106: 65 | R106: 16.48174547 | S106: 0 | T106: 2.984506988 | U106: 3.51 | V106: 16.24 | W106: 0.15 | Y106: 65 | Z106: 17.6 | AA106: 0 | AB106: 0.88 | AC106: 2.95 | AD106: 0.03 | AE106: 17.46 | AF106: 1
A107: 66 | B107: 18.82 | C107: 0.99 | D107: 2.83 | E107: 3.39 | F107: 13.91 | G107: 0.15 | I107: 66 | J107: 19.87 | K107: 0.99 | L107: 0.89 | M107: 2.97 | N107: 15.02 | O107: 0.15 | Q107: 66 | R107: 16.48174547 | S107: 0 | T107: 2.984506988 | U107: 3.51 | V107: 16.24 | W107: 0.15 | Y107: 66 | Z107: 17.6 | AA107: 0 | AB107: 0.88 | AC107: 2.95 | AD107: 0.03 | AE107: 17.46 | AF107: 1
A108: 67 | B108: 18.82 | C108: 0.99 | D108: 2.83 | E108: 3.39 | F108: 13.91 | G108: 0.15 | I108: 67 | J108: 19.87 | K108: 0.99 | L108: 0.89 | M108: 2.97 | N108: 15.02 | O108: 0.15 | Q108: 67 | R108: 16.48174547 | S108: 0 | T108: 2.984506988 | U108: 3.51 | V108: 16.24 | W108: 0.15 | Y108: 67 | Z108: 17.6 | AA108: 0 | AB108: 0.88 | AC108: 2.95 | AD108: 0.03 | AE108: 17.46 | AF108: 1
A111: Factors at 31/03/2018 | M111: NHS | Q111: STSS
A112: Age | C112: =INT((C114-C115)/365.25) -> 119 | F112: Actual | G112: Male | H112: Female | I112: Male 60 | J112: Female 60 | K112: Male 65 | L112: Female 65 | M112: Male 60 | N112: Female 60 | O112: Male 65 | P112: Female 65 | Q112: Male 60 | R112: Female 60 | S112: Male 65 | T112: Female 65
A113: Gender | C113: =IF(Results!E8="M", "Male", "Female") -> Female | D113: Pension factor | F113: =IF($C$113="Male",G113,H113) -> 17.83 | G113: =IF($C$116="60",I113,K113) -> 17.83 | H113: 17.83 | I113: =IF($C$118="NHS",M113,Q113) -> 20.34 | J113: 20.34 | K113: 17.83 | L113: =IF($C$118="NHS",P113,T113) -> 17.83 | M113: =VLOOKUP($C$112,$A$4:$G$53,2) -> 20.34 | N113: =VLOOKUP($C$112,$I$4:$O$53,2) -> 20.34 | O113: =VLOOKUP($C$112,$Q$4:$W$53,2) -> 17.83 | P113: =VLOOKUP($C$112,$Y$4:$AF$53,2) -> 17.83 | Q113: =VLOOKUP($C$112,$A$59:$G$108,2) -> 18.82 | R113: =VLOOKUP($C$112,$I$59:$O$108,2) -> 19.87 | S113: =VLOOKUP($C$112,$Q$59:$W$108,2) -> 16.48174547 | T113: =VLOOKUP($C$112,$Y$59:$AF$108,2) -> 17.6
A114: Relevant date | C114: 2019-03-31 | D114: Lump sum factor | F114: =IF($C$113="Male",G114,H114) -> 0.99 | G114: 0.99 | H114: 0.99 | I114: 0.99 | J114: 0.99 | K114: 0.99 | L114: 0.99 | M114: =VLOOKUP($C$112,$A$4:$G$53,3) -> 0.99 | N114: =VLOOKUP($C$112,$I$4:$O$53,3) -> 0.99 | O114: =VLOOKUP($C$112,$Q$4:$W$53,3) -> 0.99 | P114: =VLOOKUP($C$112,$Y$4:$AF$53,3) -> 0.99 | Q114: =VLOOKUP($C$112,$A$59:$G$108,3) -> 0.99 | R114: =VLOOKUP($C$112,$I$59:$O$108,3) -> 0.99 | S114: =VLOOKUP($C$112,$Q$59:$W$108,3) -> 0 | T114: =VLOOKUP($C$112,$Y$59:$AF$108,3) -> 0
A115: DOB | C115: =Results!E9 -> 00:00:00 | D115: Widow(er)'s pension factor | F115: 1.59 | G115: 1.59 | H115: 1.59 | I115: 1.54 | J115: 1.54 | K115: 1.59 | L115: 1.59 | M115: =VLOOKUP($C$112,$A$4:$G$53,4) -> 1.54 | N115: =VLOOKUP($C$112,$I$4:$O$53,4) -> 1.54 | O115: =VLOOKUP($C$112,$Q$4:$W$53,4) -> 1.59 | P115: =VLOOKUP($C$112,$Y$4:$AF$53,4) -> 1.59 | Q115: =VLOOKUP($C$112,$A$59:$G$108,4) -> 2.83 | R115: =VLOOKUP($C$112,$I$59:$O$108,4) -> 0.89 | S115: =VLOOKUP($C$112,$Q$59:$W$108,4) -> 2.984506988 | T115: =VLOOKUP($C$112,$Y$59:$AF$108,4) -> 0.88
A116: NRA | C116: =IF(Results!E6="NHS 1995 Section","60","65") -> 65 | D116: Pre-88 GMP factor | F116: 3.05 | G116: 3.61 | H116: 3.05 | I116: 3.48 | J116: 3.05 | K116: 3.61 | L116: 3.05 | M116: =VLOOKUP($C$112,$A$4:$G$53,5) -> 3.48 | N116: =VLOOKUP($C$112,$I$4:$O$53,5) -> 3.05 | O116: =VLOOKUP($C$112,$Q$4:$W$53,5) -> 3.61 | P116: =VLOOKUP($C$112,$Y$4:$AF$53,5) -> 3.05 | Q116: =VLOOKUP($C$112,$A$59:$G$108,5) -> 3.39 | R116: =VLOOKUP($C$112,$I$59:$O$108,5) -> 2.97 | S116: =VLOOKUP($C$112,$Q$59:$W$108,5) -> 3.51 | T116: =VLOOKUP($C$112,$Y$59:$AF$108,5) -> 2.95
A117: Factors | C117: 2016 | D117: Post-88 GMP factor | F117: 0.03 | G117: 3.61 | H117: 0.03 | I117: 3.48 | J117: 3.05 | K117: 3.61 | L117: 0.03 | M117: =VLOOKUP($C$112,$A$4:$G$53,5) -> 3.48 | N117: =VLOOKUP($C$112,$I$4:$O$53,5) -> 3.05 | O117: =VLOOKUP($C$112,$Q$4:$W$53,5) -> 3.61 | P117: =VLOOKUP($C$112,$Y$4:$AF$53,6) -> 0.03 | Q117: =VLOOKUP($C$112,$A$59:$G$108,5) -> 3.39 | R117: =VLOOKUP($C$112,$I$59:$O$108,5) -> 2.97 | S117: =VLOOKUP($C$112,$Q$59:$W$108,5) -> 3.51 | T117: =VLOOKUP($C$112,$Y$59:$AF$108,6) -> 0.03
A118: Scheme | C118: NHS | D118: NI Mod factor | F118: 16.74 | G118: 16.74 | H118: 16.74 | I118: 14.37 | J118: 14.37 | K118: 16.74 | L118: 16.74 | M118: =VLOOKUP($C$112,$A$4:$G$53,6) -> 14.37 | N118: =VLOOKUP($C$112,$I$4:$O$53,6) -> 14.37 | O118: =VLOOKUP($C$112,$Q$4:$W$53,6) -> 16.74 | P118: =VLOOKUP($C$112,$Y$4:$AF$53,7) -> 16.74 | Q118: =VLOOKUP($C$112,$A$59:$G$108,6) -> 13.91 | R118: =VLOOKUP($C$112,$I$59:$O$108,6) -> 15.02 | S118: =VLOOKUP($C$112,$Q$59:$W$108,6) -> 16.24 | T118: =VLOOKUP($C$112,$Y$59:$AF$108,7) -> 17.46
D119: GMP Adjustment | F119: 3.5 | G119: 0.15 | H119: 3.5 | I119: 0.15 | J119: 0.15 | K119: 0.15 | L119: 3.5 | M119: =VLOOKUP($C$112,$A$4:$G$53,7) -> 0.15 | N119: =VLOOKUP($C$112,$I$4:$O$53,7) -> 0.15 | O119: =VLOOKUP($C$112,$Q$4:$W$53,7) -> 0.15 | P119: =VLOOKUP($C$112,$Y$4:$AF$53,8) -> 3.5 | Q119: =VLOOKUP($C$112,$A$59:$G$108,7) -> 0.15 | R119: =VLOOKUP($C$112,$I$59:$O$108,7) -> 0.15 | S119: =VLOOKUP($C$112,$Q$59:$W$108,7) -> 0.15 | T119: =VLOOKUP($C$112,$Y$59:$AF$108,8) -> 1
A122: Factor at 31/03/2019 | M122: NHS | Q122: STSS
A123: Age | C123: =INT((C125-C126)/365.25) -> 120 | F123: Actual | G123: Male | H123: Female | I123: Male 60 | J123: Female 60 | K123: Male 65 | L123: Female 65 | M123: Male 60 | N123: Female 60 | O123: Male 65 | P123: Female 65 | Q123: Male 60 | R123: Female 60 | S123: Male 65 | T123: Female 65
A124: Gender | C124: =IF(Results!E8="M", "Male","Female") -> Female | D124: Pension factor | F124: =IF($C$113="Male",G124,H124) -> 17.83 | G124: =IF($C$116="60",I124,K124) -> 17.83 | H124: 17.83 | I124: =IF($C$118="NHS",M124,Q124) -> 20.34 | J124: =IF($C$118="NHS",N124,R124) -> 20.34 | K124: =IF($C$118="NHS",O124,S124) -> 17.83 | L124: =IF($C$118="NHS",P124,T124) -> 17.83 | M124: =VLOOKUP($C$123,$A$4:$G$53,2) -> 20.34 | N124: =VLOOKUP($C$123,$I$4:$O$53,2) -> 20.34 | O124: =VLOOKUP($C$123,$Q$4:$W$53,2) -> 17.83 | P124: =VLOOKUP($C$123,$Y$4:$AF$53,2) -> 17.83 | Q124: =VLOOKUP($C$123,$A$59:$G$108,2) -> 18.82 | R124: =VLOOKUP($C$123,$I$59:$O$108,2) -> 19.87 | S124: =VLOOKUP($C$123,$Q$59:$W$108,2) -> 16.48174547 | T124: =VLOOKUP($C$123,$Y$59:$AF$108,2) -> 17.6
A125: Relevant date | C125: 2020-03-31 | D125: Lump sum factor | F125: =IF($C$113="Male",G125,H125) -> 0.99 | G125: 0.99 | H125: 0.99 | I125: =IF($C$118="NHS",M125,Q125) -> 0.99 | J125: =IF($C$118="NHS",N125,R125) -> 0.99 | K125: =IF($C$118="NHS",O125,S125) -> 0.99 | L125: =IF($C$118="NHS",P125,T125) -> 0.99 | M125: =VLOOKUP($C$123,$A$4:$G$53,3) -> 0.99 | N125: =VLOOKUP($C$123,$I$4:$O$53,3) -> 0.99 | O125: =VLOOKUP($C$123,$Q$4:$W$53,3) -> 0.99 | P125: =VLOOKUP($C$123,$Y$4:$AF$53,3) -> 0.99 | Q125: =VLOOKUP($C$123,$A$59:$G$108,3) -> 0.99 | R125: =VLOOKUP($C$123,$I$59:$O$108,3) -> 0.99 | S125: =VLOOKUP($C$123,$Q$59:$W$108,3) -> 0 | T125: =VLOOKUP($C$123,$Y$59:$AF$108,3) -> 0
A126: DOB | C126: =Results!E9 -> 00:00:00 | D126: Widow(er)'s pension factor | F126: 1.59 | G126: 1.59 | H126: 1.59 | I126: 1.54 | J126: 1.54 | K126: 1.59 | L126: 1.59 | M126: =VLOOKUP($C$123,$A$4:$G$53,4) -> 1.54 | N126: =VLOOKUP($C$123,$I$4:$O$53,4) -> 1.54 | O126: =VLOOKUP($C$123,$Q$4:$W$53,4) -> 1.59 | P126: =VLOOKUP($C$123,$Y$4:$AF$53,4) -> 1.59 | Q126: =VLOOKUP($C$123,$A$59:$G$108,4) -> 2.83 | R126: =VLOOKUP($C$123,$I$59:$O$108,4) -> 0.89 | S126: =VLOOKUP($C$123,$Q$59:$W$108,4) -> 2.984506988 | T126: =VLOOKUP($C$123,$Y$59:$AF$108,4) -> 0.88
A127: NRA | C127: =IF(Results!E6="NHS 1995 Section","60","65") -> 65 | D127: Pre-88 GMP factor | F127: 3.05 | G127: 3.61 | H127: 3.05 | I127: 3.48 | J127: 3.05 | K127: 3.61 | L127: 3.05 | M127: =VLOOKUP($C$123,$A$4:$G$53,5) -> 3.48 | N127: =VLOOKUP($C$123,$I$4:$O$53,5) -> 3.05 | O127: =VLOOKUP($C$123,$Q$4:$W$53,5) -> 3.61 | P127: =VLOOKUP($C$123,$Y$4:$AF$53,5) -> 3.05 | Q127: =VLOOKUP($C$123,$A$59:$G$108,5) -> 3.39 | R127: =VLOOKUP($C$123,$I$59:$O$108,5) -> 2.97 | S127: =VLOOKUP($C$123,$Q$59:$W$108,5) -> 3.51 | T127: =VLOOKUP($C$123,$Y$59:$AF$108,5) -> 2.95
A128: Factors | C128: 2016 | D128: Post-88 GMP factor | F128: 0.03 | G128: 3.61 | H128: 0.03 | I128: 3.48 | J128: 3.05 | K128: 3.61 | L128: 0.03 | M128: =VLOOKUP($C$123,$A$4:$G$53,5) -> 3.48 | N128: =VLOOKUP($C$123,$I$4:$O$53,5) -> 3.05 | O128: =VLOOKUP($C$123,$Q$4:$W$53,5) -> 3.61 | P128: =VLOOKUP($C$123,$Y$4:$AF$53,6) -> 0.03 | Q128: =VLOOKUP($C$123,$A$59:$G$108,5) -> 3.39 | R128: =VLOOKUP($C$123,$I$59:$O$108,5) -> 2.97 | S128: =VLOOKUP($C$123,$Q$59:$W$108,5) -> 3.51 | T128: =VLOOKUP($C$123,$Y$59:$AF$108,6) -> 0.03
A129: Scheme | C129: NHS | D129: NI Mod factor | F129: 16.74 | G129: 16.74 | H129: 16.74 | I129: 14.37 | J129: 14.37 | K129: 16.74 | L129: 16.74 | M129: =VLOOKUP($C$123,$A$4:$G$53,6) -> 14.37 | N129: =VLOOKUP($C$123,$I$4:$O$53,6) -> 14.37 | O129: =VLOOKUP($C$123,$Q$4:$W$53,6) -> 16.74 | P129: =VLOOKUP($C$123,$Y$4:$AF$53,7) -> 16.74 | Q129: =VLOOKUP($C$123,$A$59:$G$108,6) -> 13.91 | R129: =VLOOKUP($C$123,$I$59:$O$108,6) -> 15.02 | S129: =VLOOKUP($C$123,$Q$59:$W$108,6) -> 16.24 | T129: =VLOOKUP($C$123,$Y$59:$AF$108,7) -> 17.46
D130: GMP Adjustment | F130: 3.5 | G130: 0.15 | H130: 3.5 | I130: 0.15 | J130: 0.15 | K130: 0.15 | L130: 3.5 | M130: =VLOOKUP($C$123,$A$4:$G$53,7) -> 0.15 | N130: =VLOOKUP($C$123,$I$4:$O$53,7) -> 0.15 | O130: =VLOOKUP($C$123,$Q$4:$W$53,7) -> 0.15 | P130: =VLOOKUP($C$123,$Y$4:$AF$53,8) -> 3.5 | Q130: =VLOOKUP($C$123,$A$59:$G$108,7) -> 0.15 | R130: =VLOOKUP($C$123,$I$59:$O$108,7) -> 0.15 | S130: =VLOOKUP($C$123,$Q$59:$W$108,7) -> 0.15 | T130: =VLOOKUP($C$123,$Y$59:$AF$108,8) -> 1

Sheet NHS CARE Non Club Factors (hidden)
B2: Table TV1 Member and Dependant CETV factors
B3: Years to PNPA (rounded up) | C3: Pension factor | D3: Surviving Partner's Pension factor
C4: (Factor A) | D4: (Factor B)
B5: 1 | C5: 17.08 | D5: 1.6
B6: 2 | C6: 16.65 | D6: 1.6
B7: 3 | C7: 16.24 | D7: 1.6
B8: 4 | C8: 15.72 | D8: 1.61
B9: 5 | C9: 15.22 | D9: 1.61
B10: 6 | C10: 14.74 | D10: 1.61
B11: 7 | C11: 14.27 | D11: 1.61
B12: 8 | C12: 13.94 | D12: 1.6
B13: 9 | C13: 13.62 | D13: 1.59
B14: 10 | C14: 13.31 | D14: 1.58
B15: 11 | C15: 13.01 | D15: 1.57
B16: 12 | C16: 12.72 | D16: 1.56
B17: 13 | C17: 12.44 | D17: 1.54
B18: 14 | C18: 12.17 | D18: 1.52
B19: 15 | C19: 11.9 | D19: 1.51
B20: 16 | C20: 11.64 | D20: 1.49
B21: 17 | C21: 11.39 | D21: 1.47
B22: 18 | C22: 11.15 | D22: 1.45
B23: 19 | C23: 10.91 | D23: 1.43
B24: 20 | C24: 10.68 | D24: 1.41
B25: 21 | C25: 10.45 | D25: 1.39
B26: 22 | C26: 10.14 | D26: 1.38
B27: 23 | C27: 9.84 | D27: 1.36
B28: 24 | C28: 9.55 | D28: 1.35
B29: 25 | C29: 9.27 | D29: 1.33
B30: 26 | C30: 9.08 | D30: 1.31
B31: 27 | C31: 8.89 | D31: 1.29
B32: 28 | C32: 8.71 | D32: 1.27
B33: 29 | C33: 8.53 | D33: 1.25
B34: 30 | C34: 8.35 | D34: 1.22
B35: 31 | C35: 8.18 | D35: 1.2
B36: 32 | C36: 8.01 | D36: 1.18
B37: 33 | C37: 7.85 | D37: 1.15
B38: 34 | C38: 7.69 | D38: 1.13
B39: 35 | C39: 7.53 | D39: 1.1
B40: 36 | C40: 7.37 | D40: 1.08
B41: 37 | C41: 7.22 | D41: 1.06
B42: 38 | C42: 7.08 | D42: 1.03
B43: 39 | C43: 6.93 | D43: 1.01
B44: 40 | C44: 6.79 | D44: 0.99
B45: 41 | C45: 6.65 | D45: 0.97
B46: 42 | C46: 6.52 | D46: 0.94
B47: 43 | C47: 6.39 | D47: 0.92
B48: 44 | C48: 6.26 | D48: 0.9
B49: 45 | C49: 6.13 | D49: 0.88
B50: 46 | C50: 6 | D50: 0.86
B51: 47 | C51: 5.88 | D51: 0.84
B52: 48 | C52: 5.76 | D52: 0.82
B53: 49 | C53: 5.64 | D53: 0.8
B54: 50 | C54: 5.53 | D54: 0.75
F56: CARE NRA | I56: =(DATE(YEAR(Results!E9)+Results!E10,MONTH(Results!E9)+Results!F10,DAY(Results!E9))) -> 00:00:00
F58: Relevant Date | I58: 2019-03-31 | J58: 2020-03-31
F59: Pension Factor | I59: =VLOOKUP($I$62,B5:C54,2) ->  | J59: =VLOOKUP($J$62,B5:C54,2) -> 
F60: Partner's Factor | I60: =VLOOKUP($I$62,B5:D54,3) ->  | J60: =VLOOKUP($J$62,B5:D54,3) -> 
F61: Age | I61: =Results!K8 -> 119 | J61: =Results!K9 -> 120
F62: Years to NPA (rounded up) | I62: =DATEDIF(I58, I56, "y")+1 ->  | J62: =DATEDIF(J58, I56, "y")+1 -> 
